[Event "Elitserien Allsvenskan 2019-20"]
[Site "Lund"]
[Date "2020.02.01"]
[Round "5.4"]
[White "Smith, Axel"]
[Black "Alle Wahlin, Ambjorn"]
[Result "0-1"]
[ECO "D37"]
[WhiteElo "2469"]
[BlackElo "2257"]
[Annotator "ChessBase"]
[PlyCount "74"]
[EventDate "2019.10.18"]
[EventType "team-tourn"]
[EventCountry "SWE"]
[SourceTitle "playchess.com"]
[Source "ChessBase"]
[SourceQuality "1"]
[TimeControl "40/5400+30:1800+30"]

1. d4 {[%emt 0:01:40]} d5 {[%emt 0:00:00]} 2. c4 {[%emt 0:00:09]} e6 {[%emt 0:00:00]} 3. Nc3 {[%emt 0:01:21]} a6 {[%emt 0:00:33]} 4. cxd5 {[%emt 0:02:06]} exd5 {[%emt 0:01:02]} 5. Nf3 {[%emt 0:05:10]} Nf6 {[%emt 0:00:25]} 6. Bg5 {[%emt 0:00:26]} Be6 {[%emt 0:00:32]} 7. e3 {[%emt 0:01:02]} Nbd7 {[%emt 0:00:29]} 8. Bd3 {[%emt 0:01:47]} h6 {[%emt 0:00:31]} 9. Bh4 {[%emt 0:03:21]} g5 {[%emt 0:01:22]} 10. Bg3 {[%emt 0:00:58]} Nh5 {[%emt 0:01:38]} 11. Be5 {[%emt 0:09:10]} Ng7 {[%emt 0:01:39]} 12. h3 {[%emt 0:07:35]} Nxe5 {[%emt 0:03:18]} 13. Nxe5 {[%emt 0:00:02]} Bd6 {[%emt 0:01:36]} 14. Qf3 {[%emt 0:19:19]} c6 {[%emt 0:16:23]} 15. Rc1 {[%emt 0:09:20]} Qe7 {[%emt 0:06:26]} 16. a3 {[%emt 0:02:31]} h5 {[%emt 0:08:52]} 17. Qe2 {[%emt 0:05:15]} Bf5 {[%emt 0:04:16]} 18. e4 {[%emt 0:08:44]} dxe4 {[%emt 0:10:30]} 19. Nxe4 {[%emt 0:00:01]} Bxe4 {[%emt 0:02:03]} 20. Bxe4 {[%emt 0:02:08]} Kf8 {[%emt 0:13:47]} 21. O-O {[%emt 0:04:58]} Ne6 {[%emt 0:05:30]} 22. Qe3 {[%emt 0:04:36]} Rd8 {[%emt 0:03:06]} 23. Rfd1 {[%emt 0:01:12]} Kg7 {[%emt 0:02:13]} 24. Qc3 {[%emt 0:02:07]} Qf6 {[%emt 0:00:25]} 25. Nc4 {[%emt 0:02:47]} Bf4 {[%emt 0:00:28]} 26. Ne3 {[%emt 0:01:12]} Rhe8 {[%emt 0:09:50]} 27. d5 {[%emt 0:02:27]} Be5 {[%emt 0:02:20]} 28. Qe1 {[%emt 0:01:31]} Nd4 {[%emt 0:01:07]} 29. g3 {[%emt 0:01:02]} cxd5 {[%emt 0:02:28]} 30. Nxd5 {[%emt 0:00:09]} Nf3+ {[%emt 0:00:10]} 31. Bxf3 {[%emt 0:00:10]} Qxf3 {[%emt 0:00:07]} 32. Qe3 {[%emt 0:00:53]} Qf5 {[%emt 0:00:48]} 33. Qb3 {[%emt 0:00:20]} Qxh3 {[%emt 0:00:31]} 34. Rd3 {[%emt 0:00:50]} h4 {[%emt 0:00:15]} 35. Re1 {[%emt 0:00:37]} hxg3 {[%emt 0:00:23]} 36. fxg3 {[%emt 0:00:04]} Bd4+ {[%emt 0:00:13]} 37. Rxd4 {[%emt 0:00:14]} Rxe1+ {[%emt 0:00:05]} 0-1

[Event "Elitserien Allsvenskan 2019-20"]
[Site "Lund"]
[Date "2020.02.01"]
[Round "5.8"]
[White "Dragicevic, Drazen"]
[Black "Lundstedt, Peter"]
[Result "1-0"]
[ECO "A14"]
[WhiteElo "2286"]
[BlackElo "2088"]
[Annotator "NA"]
[PlyCount "89"]
[EventDate "2019.10.18"]
[EventType "team-tourn"]
[EventCountry "SWE"]
[SourceTitle "playchess.com"]
[Source "ChessBase"]
[SourceQuality "1"]
[TimeControl "40/5400+30:1800+30"]

1. Nf3 {[%emt 0:00:00]} d5 {[%emt 0:00:00]} 2. g3 {[%emt 0:00:05]} Nf6 {[%emt 0:00:00]} 3. Bg2 {[%emt 0:00:06]} e6 {[%emt 0:00:00]} 4. O-O {[%emt 0:00:28]} Be7 {[%emt 0:00:12]} 5. c4 {[%emt 0:01:31]} O-O {[%emt 0:00:23]} 6. b3 {[%emt 0:00:26]} c5 {[%emt 0:01:12]} 7. cxd5 {[%emt 0:05:37]} Nxd5 {[%emt 0:01:11]} 8. Bb2 {[%emt 0:01:18]} Bf6 {[%emt 0:00:56] A14: English Opening: 1...e6 with b3 by White} 9. d4 {[%emt 0:11:58]} Nc6 {[%emt 0:12:24]} 10. e4 {[%emt 0:08:12]} Nc7 {[%emt 0:00:14]} 11. e5 {[%emt 0:00:46]} Be7 {[%emt 0:00:05]} 12. dxc5 {[%emt 0:02:11]} Bxc5 {[%emt 0:03:39]} 13. Qc2 {[%emt 0:06:28]} Qe7 {[%emt 0:05:27]} 14. a3 {[%emt 0:13:10] [#]} Bd7 $146 {[%emt 0:14:15]} ({Predecessor:} 14... a5 15. Nbd2 Nb5 16. Ne4 Bd4 17. Nxd4 Nbxd4 18. Qc4 b5 19. Qd3 Rd8 20. Nd6 Ba6 21. Bxd4 {1-0 (26) Varnam,L (2124)-Flear,C (2181) Daventry 2014}) 15. Nbd2 {[%emt 0:03:47]} Nd5 {[%emt 0:11:04]} 16. Ne4 {[%emt 0:02:16]} Bb6 {[%emt 0:00:06]} 17. Rad1 {[%emt 0:11:12]} f6 {[%emt 0:10:22]} 18. exf6 {[%emt 0:01:27]} gxf6 {[%emt 0:01:01]} 19. Rfe1 {[%emt 0:01:52]} Qg7 {[%emt 0:12:18]} 20. Nc5 {[%emt 0:08:38]} Bxc5 {[%emt 0:01:55]} 21. Qxc5 {[%emt 0:00:03]} Rac8 $18 {[%emt 0:02:15]} 22. Qd6 {[%emt 0:02:34]} Rfe8 {[%emt 0:10:51]} 23. Bh3 {[%emt 0:01:48]} Rcd8 {[%emt 0:01:13]} 24. Kh1 {[%emt 0:08:08]} Bc8 {[%emt 0:01:04]} 25. Qc5 {[%emt 0:00:10]} Qf8 {[%emt 0:02:07]} 26. Qc4 {[%emt 0:01:28]} Qh6 {[%emt 0:00:12]} 27. Bg2 {[%emt 0:01:55]} Kf7 {[%emt 0:01:05]} 28. b4 {[%emt 0:01:04]} Nb6 {[%emt 0:02:30]} 29. Qb3 {[%emt 0:00:37]} Nd5 {[%emt 0:00:14]} 30. b5 {[%emt 0:01:17]} Nce7 {[%emt 0:02:12]} 31. Nd4 {[%emt 0:00:34]} e5 {[%emt 0:00:55]} 32. Nf3 {[%emt 0:01:46]} Be6 {[%emt 0:00:08]} 33. Qa4 {[%emt 0:00:40]} Ra8 {[%emt 0:01:27]} 34. Re4 {[%emt 0:01:33]} a6 {[%emt 0:01:44]} 35. Rh4 {[%emt 0:00:34]} Qg7 {[%emt 0:00:01]} 36. Re4 {[%emt 0:01:24]} Qh6 {[%emt 0:00:58]} 37. Rde1 {[%emt 0:00:16]} Ng6 {[%emt 0:01:15]} 38. b6 {[%emt 0:00:55]} Rad8 {[%emt 0:00:58]} 39. Qa5 {[%emt 0:00:23]} Rd6 {[%emt 0:00:35]} 40. Nh4 {[%emt 0:00:46]} Nge7 {[%emt 0:00:47]} 41. Bc1 {[%emt 0:04:44]} Qg7 {[%emt 0:02:05]} 42. f4 {[%emt 0:03:35]} Nc6 {[%emt 0:05:08]} 43. Qc5 {[%emt 0:01:36]} Red8 {[%emt 0:01:18]} 44. Bb2 {[%emt 0:05:04]} R8d7 {[%emt 0:18:00]} 45. f5 {[%emt 0:01:26]} 1-0

[Event "Elitserien Allsvenskan 2019-20"]
[Site "Lund"]
[Date "2020.02.01"]
[Round "5.9"]
[White "Gdanski, Jacek"]
[Black "Hector, Jonny"]
[Result "1-0"]
[ECO "A09"]
[WhiteElo "2482"]
[BlackElo "2481"]
[Annotator "ChessBase"]
[PlyCount "65"]
[EventDate "2019.10.18"]
[EventType "team-tourn"]
[EventCountry "SWE"]
[SourceTitle "playchess.com"]
[Source "ChessBase"]
[SourceQuality "1"]
[TimeControl "40/5400+30:1800+30"]

1. Nf3 {[%emt 0:03:51]} d5 {[%emt 0:00:00]} 2. c4 {[%emt 0:00:10]} d4 {[%emt 0:00:10]} 3. g3 {[%emt 0:00:17]} Nc6 {[%emt 0:00:31]} 4. Bg2 {[%emt 0:00:10]} e5 {[%emt 0:00:14]} 5. d3 {[%emt 0:00:14]} Nf6 {[%emt 0:01:54]} 6. O-O {[%emt 0:00:07]} Bd6 {[%emt 0:00:09]} 7. a3 {[%emt 0:04:22]} a5 {[%emt 0:00:46]} 8. e3 {[%emt 0:00:03]} O-O {[%emt 0:01:36]} 9. exd4 {[%emt 0:00:03]} exd4 {[%emt 0:01:45]} 10. Bg5 {[%emt 0:00:06]} h6 {[%emt 0:00:32]} 11. Bxf6 {[%emt 0:00:05]} Qxf6 {[%emt 0:00:07]} 12. Nbd2 {[%emt 0:00:04]} Bf5 {[%emt 0:00:53]} 13. Qb3 {[%emt 0:06:04]} Bc5 {[%emt 0:20:08]} 14. Nh4 {[%emt 0:06:35]} Bd7 {[%emt 0:20:48]} 15. Ne4 {[%emt 0:17:44]} Qe7 {[%emt 0:00:31]} 16. Nxc5 {[%emt 0:06:36]} Qxc5 {[%emt 0:00:13]} 17. Qxb7 {[%emt 0:00:28]} Rfb8 {[%emt 0:05:38]} 18. b4 {[%emt 0:05:49]} Qf8 {[%emt 0:01:43]} 19. Qxc7 {[%emt 0:00:49]} Ra7 {[%emt 0:00:12]} 20. Qf4 {[%emt 0:00:33]} g5 {[%emt 0:03:37]} 21. Qf6 {[%emt 0:01:50]} gxh4 {[%emt 0:04:06]} 22. Bxc6 {[%emt 0:07:05]} Bxc6 {[%emt 0:00:27]} 23. Qxc6 {[%emt 0:00:13]} axb4 {[%emt 0:00:58]} 24. axb4 {[%emt 0:00:17]} Rxa1 {[%emt 0:00:27]} 25. Rxa1 {[%emt 0:00:05]} Rxb4 {[%emt 0:06:17]} 26. Qe4 {[%emt 0:05:07]} hxg3 {[%emt 0:03:06]} 27. hxg3 {[%emt 0:00:02]} Qd6 {[%emt 0:05:53]} 28. Ra8+ {[%emt 0:01:21]} Kg7 {[%emt 0:00:18]} 29. Qg4+ {[%emt 0:00:06]} Kf6 {[%emt 0:00:09]} 30. Rd8 {[%emt 0:04:19]} Rb1+ {[%emt 0:04:24]} 31. Kg2 {[%emt 0:00:12]} Qc6+ {[%emt 0:02:41]} 32. Rd5 {[%emt 0:00:45]} Re1 {[%emt 0:02:36]} 33. Qf3+ {[%emt 0:00:54]} 1-0

[Event "Elitserien Allsvenskan 2019-20"]
[Site "Lund"]
[Date "2020.02.01"]
[Round "5.11"]
[White "Gajic, Mladen"]
[Black "Jepson, Christian"]
[Result "1/2-1/2"]
[ECO "B09"]
[WhiteElo "2295"]
[BlackElo "2384"]
[Annotator "NA"]
[PlyCount "69"]
[EventDate "2019.10.18"]
[EventType "team-tourn"]
[EventCountry "SWE"]
[SourceTitle "playchess.com"]
[Source "ChessBase"]
[SourceQuality "1"]
[TimeControl "40/5400+30:1800+30"]

1. d4 {[%emt 0:00:08]} d6 {[%emt 0:01:00]} 2. e4 {[%emt 0:00:12]} Nf6 {[%emt 0:00:07]} 3. Nc3 {[%emt 0:00:10]} g6 {[%emt 0:00:06]} 4. f4 {[%emt 0:00:25]} Bg7 {[%emt 0:00:17]} 5. e5 {[%emt 0:00:45]} Nfd7 {[%emt 0:04:02]} 6. Be3 {[%emt 0:29:19] B09: Pirc Defence: Austrian Attack} c5 {[%emt 0:08:46]} 7. e6 {[%emt 0:14:25]} (7. exd6 $11 exd6 8. Qd2) 7... fxe6 {[%emt 0:00:21]} 8. dxc5 {[%emt 0:00:24] [#]} Nxc5 $146 {[%emt 0:06:45]} ({Predecessor:} 8... d5 9. Nf3 Nc6 10. Bb5 Nf6 11. Qe2 O-O 12. Bxc6 bxc6 13. Bd4 Nh5 14. g3 Qa5 {1-0 (40) Vogler,T (2295)-Dizdarevic,M Wiesbaden 1993}) 9. Bxc5 {[%emt 0:05:01]} dxc5 {[%emt 0:00:49]} 10. Qxd8+ {[%emt 0:00:11]} Kxd8 {[%emt 0:00:03]} 11. O-O-O+ {[%emt 0:00:05]} Kc7 {[%emt 0:04:42]} 12. Nf3 {[%emt 0:02:23]} Nc6 {[%emt 0:01:10]} 13. g3 {[%emt 0:04:25]} Bxc3 {[%emt 0:04:58]} 14. bxc3 {[%emt 0:00:04]} e5 {[%emt 0:00:08]} 15. Nxe5 {[%emt 0:01:39]} Nxe5 {[%emt 0:01:47]} 16. fxe5 {[%emt 0:00:02]} Be6 {[%emt 0:00:12]} 17. Be2 {[%emt 0:10:02]} Rhf8 {[%emt 0:06:09]} ({Reject} 17... Bxa2 18. c4 $11) 18. Bd3 {[%emt 0:08:55]} Rf3 {[%emt 0:01:06]} 19. Rdf1 {[%emt 0:01:41]} Raf8 {[%emt 0:05:21]} 20. Rxf3 {[%emt 0:01:39]} Rxf3 {[%emt 0:00:09]} 21. Kd2 {[%emt 0:00:30]} Bd5 {[%emt 0:11:56]} ({But not} 21... Bxa2 $6 22. c4 $14) 22. Rf1 {[%emt 0:05:15]} Rxf1 {[%emt 0:19:38]} 23. Bxf1 $11 {[%emt 0:00:18]} Kd7 {[%emt 0:07:11]} 24. c4 {[%emt 0:01:40]} Be4 {[%emt 0:00:19]} 25. Bd3 {[%emt 0:02:27]} Bxd3 {[%emt 0:10:23]} 26. Kxd3 {[%emt 0:00:04]} Kc6 {[%emt 0:00:16]} 27. Ke4 {[%emt 0:03:30]} e6 {[%emt 0:02:07]} 28. Kd3 {[%emt 0:00:39]} a6 {[%emt 0:00:31]} 29. Kc3 {[%emt 0:01:39]} b5 {[%emt 0:00:56]} 30. Kb3 {[%emt 0:00:53]} Kb6 {[%emt 0:00:14]} 31. Kc3 {[%emt 0:01:01]} Kc7 {[%emt 0:01:21]} 32. cxb5 {[%emt 0:02:36]} axb5 {[%emt 0:00:04]} 33. Kb3 {[%emt 0:00:05]} Kc6 {[%emt 0:00:54]} 34. c4 {[%emt 0:01:16]} b4 {[%emt 0:00:07]} 35. a3 {[%emt 0:00:43]} 1/2-1/2

[Event "Elitserien Allsvenskan 2019-20"]
[Site "Lund"]
[Date "2020.02.01"]
[Round "5.14"]
[White "Kabadayi, Can"]
[Black "Ornstein, Axel"]
[Result "1-0"]
[ECO "A62"]
[WhiteElo "2195"]
[BlackElo "2284"]
[Annotator "ChessBase"]
[PlyCount "63"]
[EventDate "2019.10.18"]
[EventType "team-tourn"]
[EventCountry "SWE"]
[SourceTitle "playchess.com"]
[Source "ChessBase"]
[SourceQuality "1"]
[TimeControl "40/5400+30:1800+30"]

1. d4 {[%emt 0:00:00]} Nf6 {[%emt 0:02:29]} 2. c4 {[%emt 0:00:20]} e6 {[%emt 0:00:09]} 3. g3 {[%emt 0:00:11]} c5 {[%emt 0:06:56]} 4. d5 {[%emt 0:00:14]} exd5 {[%emt 0:00:14]} 5. cxd5 {[%emt 0:00:03]} d6 {[%emt 0:00:26]} 6. Nc3 {[%emt 0:00:45]} g6 {[%emt 0:00:05]} 7. Bg2 {[%emt 0:00:27]} Bg7 {[%emt 0:00:04]} 8. Nf3 {[%emt 0:00:16]} O-O {[%emt 0:00:08]} 9. O-O {[%emt 0:00:04]} a6 {[%emt 0:09:26]} 10. a4 {[%emt 0:00:58]} Re8 {[%emt 0:00:04]} 11. Bf4 {[%emt 0:00:28]} Ne4 {[%emt 0:00:05]} 12. Nxe4 {[%emt 0:00:43]} Rxe4 {[%emt 0:00:02]} 13. Nd2 {[%emt 0:00:18]} Rb4 {[%emt 0:00:06]} 14. b3 {[%emt 0:03:03]} Bxa1 {[%emt 0:13:17]} 15. Qxa1 {[%emt 0:00:31]} Rxf4 {[%emt 0:00:02]} 16. gxf4 {[%emt 0:00:10]} Nd7 {[%emt 0:00:02]} 17. Ne4 {[%emt 0:05:04]} Qe7 {[%emt 0:00:05]} 18. Rd1 {[%emt 0:19:17]} f5 {[%emt 0:06:51]} 19. Ng5 {[%emt 0:01:59]} Nf6 {[%emt 0:00:06]} 20. Rd3 {[%emt 0:03:12]} Bd7 {[%emt 0:03:19]} 21. Re3 {[%emt 0:02:29]} Qf8 {[%emt 0:00:52]} 22. Ne6 {[%emt 0:09:44]} Bxe6 {[%emt 0:00:07]} 23. dxe6 {[%emt 0:04:45]} Qe7 {[%emt 0:00:08]} 24. Bxb7 {[%emt 0:02:57]} Rb8 {[%emt 0:20:46]} 25. Bxa6 {[%emt 0:11:23]} d5 {[%emt 0:00:06]} 26. Qe5 {[%emt 0:05:27]} Rb6 {[%emt 0:05:44]} 27. Bb5 {[%emt 0:01:19]} Ng4 {[%emt 0:05:02]} 28. Qxd5 {[%emt 0:01:15]} Rd6 {[%emt 0:00:06]} 29. Qf3 {[%emt 0:06:37]} Nxe3 {[%emt 0:05:05]} 30. Qxe3 {[%emt 0:00:23]} Rd4 {[%emt 0:01:41]} 31. Bc4 {[%emt 0:01:50]} Re4 {[%emt 0:00:06]} 32. Qd2 {[%emt 0:01:46]} 1-0

[Event "Elitserien Allsvenskan 2019-20"]
[Site "Lund"]
[Date "2020.02.01"]
[Round "5.15"]
[White "Malesevic, Nedeljko"]
[Black "Tadjerbashi, Amir"]
[Result "0-1"]
[ECO "D48"]
[WhiteElo "2257"]
[BlackElo "2199"]
[Annotator "NA"]
[PlyCount "76"]
[EventDate "2019.10.18"]
[EventType "team-tourn"]
[EventCountry "SWE"]
[SourceTitle "playchess.com"]
[Source "ChessBase"]
[SourceQuality "1"]
[TimeControl "40/5400+30:1800+30"]

1. d4 {[%emt 0:00:19]} d5 {[%emt 0:00:00]} 2. c4 {[%emt 0:00:31]} e6 {[%emt 0:00:00]} 3. Nf3 {[%emt 0:00:19]} c6 {[%emt 0:00:00]} 4. e3 {[%emt 0:01:20]} Nf6 {[%emt 0:00:15]} 5. Nc3 {[%emt 0:02:08]} Nbd7 {[%emt 0:00:44]} 6. Bd3 {[%emt 0:00:44]} dxc4 {[%emt 0:00:27]} 7. Bxc4 {[%emt 0:00:20]} b5 {[%emt 0:00:08]} 8. Bd3 {[%emt 0:06:30]} a6 {[%emt 0:00:19]} 9. O-O {[%emt 0:03:34]} c5 {[%emt 0:00:31]} 10. b3 {[%emt 0:02:09]} Bb7 {[%emt 0:01:40]} 11. Bb2 {[%emt 0:02:56]} cxd4 {[%emt 0:06:43]} 12. exd4 {[%emt 0:01:49] D48: Semi-Slav: Meran System: 7...b5 8 Bd3 a6} Be7 {[%emt 0:05:25]} 13. Re1 {[%emt 0:06:36]} O-O {[%emt 0:00:37]} 14. Rc1 {[%emt 0:17:03]} Nb6 {[%emt 0:20:06]} 15. Ne4 {[%emt 0:05:30]} Nxe4 {[%emt 0:01:04]} 16. Bxe4 {[%emt 0:00:09]} Bxe4 {[%emt 0:00:13]} 17. Rxe4 {[%emt 0:00:05]} Nd5 {[%emt 0:00:40]} 18. Ne5 {[%emt 0:02:24] [#]} Bd6 $146 {[%emt 0:05:37]} ({Predecessor:} 18... Bg5 19. Rc5 Qa5 20. a3 Qd2 21. Qxd2 Bxd2 22. Re2 Bf4 23. g3 Bxe5 24. dxe5 Rfc8 {½-½ (32) Rawat,R (2004)-Sharma,D (2382) New Delhi 2007}) 19. Nd3 {[%emt 0:05:04]} Qe7 {[%emt 0:19:49]} 20. Nc5 {[%emt 0:08:22]} Rfd8 {[%emt 0:00:17]} 21. Qf3 {[%emt 0:16:05]} Rac8 {[%emt 0:00:36]} 22. Nd3 {[%emt 0:06:50]} Ba3 {[%emt 0:00:57]} 23. Qe2 $19 {[%emt 0:04:56]} (23. Rxc8 $17 Rxc8 24. Qe2) 23... Rxc1+ {[%emt 0:12:09]} 24. Nxc1 {[%emt 0:00:12]} Bxb2 {[%emt 0:00:31]} 25. Qxb2 {[%emt 0:00:06]} Qd6 {[%emt 0:02:29]} 26. Ne2 {[%emt 0:01:41]} Nf6 {[%emt 0:00:26]} 27. Re3 {[%emt 0:02:18]} e5 {[%emt 0:02:57]} 28. f3 {[%emt 0:01:19]} exd4 {[%emt 0:00:10]} 29. Rd3 {[%emt 0:00:10]} Qe5 {[%emt 0:00:46]} 30. g3 {[%emt 0:01:05]} Re8 {[%emt 0:01:28]} 31. Nxd4 {[%emt 0:01:32]} Qe1+ {[%emt 0:00:15]} 32. Kg2 {[%emt 0:00:03]} Nd5 {[%emt 0:00:19]} 33. Qd2 {[%emt 0:01:25]} Ne3+ {[%emt 0:02:01]} 34. Kh3 {[%emt 0:00:01]} Qf1+ {[%emt 0:00:48]} 35. Kh4 {[%emt 0:00:01]} Re4+ {[%emt 0:02:12]} 36. g4 {[%emt 0:00:48]} Rxg4+ {[%emt 0:03:28]} 37. fxg4 {[%emt 0:00:11]} Qf6+ {[%emt 0:00:08]} 38. g5 {[%emt 0:01:11]} Qf4+ {[%emt 0:00:09]} 0-1

[Event "Elitserien Allsvenskan 2019-20"]
[Site "Lund"]
[Date "2020.02.01"]
[Round "5.16"]
[White "Nylen, Anders"]
[Black "Gustafsson, Fredrik"]
[Result "1/2-1/2"]
[ECO "D85"]
[WhiteElo "2188"]
[BlackElo "2089"]
[Annotator "NA"]
[PlyCount "100"]
[EventDate "2019.10.18"]
[EventType "team-tourn"]
[EventCountry "SWE"]
[SourceTitle "playchess.com"]
[Source "ChessBase"]
[SourceQuality "1"]
[TimeControl "40/5400+30:1800+30"]

1. d4 {[%emt 0:00:00]} Nf6 {[%emt 0:01:02]} 2. c4 {[%emt 0:00:00]} g6 {[%emt 0:00:04]} 3. Nc3 {[%emt 0:00:00]} d5 {[%emt 0:00:06]} 4. cxd5 {[%emt 0:00:07]} Nxd5 {[%emt 0:00:07]} 5. e4 {[%emt 0:00:11]} Nxc3 {[%emt 0:00:14]} 6. bxc3 {[%emt 0:00:06]} Bg7 {[%emt 0:00:05]} 7. Nf3 {[%emt 0:00:14]} c5 {[%emt 0:02:00]} 8. Rb1 {[%emt 0:00:25]} O-O {[%emt 0:00:50]} 9. Be2 {[%emt 0:00:10]} cxd4 {[%emt 0:18:44]} 10. cxd4 {[%emt 0:00:08]} Nc6 {[%emt 0:00:15]} 11. d5 {[%emt 0:02:29]} Na5 {[%emt 0:04:19]} 12. O-O {[%emt 0:02:19] D85: Exchange Grünfeld: Unusual White 7th moves and lines with 7 Nf3} e6 {[%emt 0:06:38] [#]} 13. Ba3 $146 {[%emt 0:05:08]} ({Predecessor:} 13. Bg5 f6 14. Bh4 exd5 15. exd5 b6 16. Bg3 Nb7 17. d6 f5 18. Ba6 Qd7 19. Bh4 f4 20. Be7 Rf5 21. Qd2 Na5 22. Bxc8 Rxc8 23. Rbc1 Rcc5 24. Rxc5 Rxc5 25. Qxf4 Nc6 26. Re1 Rf5 {1-0 (26) Ruzafa Sanchez,J (1834)-Gercowski Tuchszer,L (1753) Eivissa 2018}) 13... Re8 {[%emt 0:00:41]} 14. d6 {[%emt 0:02:18]} e5 {[%emt 0:01:21] [#]} (14... Bd7 $16) 15. Qd2 $1 {[%emt 0:08:35]} Bd7 {[%emt 0:11:14]} 16. Rfd1 {[%emt 0:08:33]} Rb8 {[%emt 0:02:28]} 17. Qe3 {[%emt 0:15:44]} Nc6 {[%emt 0:02:28]} 18. Qc5 {[%emt 0:05:22]} Qf6 {[%emt 0:03:55]} 19. Rd2 {[%emt 0:07:07]} Rec8 {[%emt 0:06:15]} 20. Qb5 $11 {[%emt 0:05:07]} Rd8 {[%emt 0:03:08]} 21. Qc5 {[%emt 0:02:37]} g5 {[%emt 0:08:47]} 22. h3 {[%emt 0:01:59]} h5 {[%emt 0:02:06]} 23. Nh2 {[%emt 0:02:50]} Qg6 {[%emt 0:00:36]} 24. Rdb2 {[%emt 0:07:08]} b6 {[%emt 0:01:12]} 25. Qe3 {[%emt 0:01:34]} Nd4 {[%emt 0:03:02]} 26. Ba6 {[%emt 0:02:01]} g4 {[%emt 0:02:58]} 27. h4 {[%emt 0:03:47]} Bc6 {[%emt 0:02:23]} 28. Re1 {[%emt 0:00:42]} Bf8 {[%emt 0:00:16]} 29. f4 {[%emt 0:03:52]} gxf3 {[%emt 0:01:18]} 30. Nxf3 {[%emt 0:00:11]} Nxf3+ {[%emt 0:00:16]} 31. Qxf3 {[%emt 0:00:08]} Bxd6 {[%emt 0:00:30]} 32. Bxd6 {[%emt 0:03:26]} Rxd6 {[%emt 0:00:12]} 33. Bc4 {[%emt 0:00:38]} Rf6 {[%emt 0:05:16]} 34. Qc3 {[%emt 0:02:21]} Re8 {[%emt 0:01:51]} 35. Bd5 {[%emt 0:01:06]} Bxd5 {[%emt 0:03:35]} 36. exd5 {[%emt 0:00:08]} e4 {[%emt 0:00:25]} 37. Re3 {[%emt 0:02:35]} Rf4 {[%emt 0:01:55]} 38. Rf2 {[%emt 0:03:50]} Rg4 {[%emt 0:03:03]} 39. Qc7 {[%emt 0:01:38]} Qg7 {[%emt 0:02:57]} 40. d6 {[%emt 0:01:04]} Qa1+ {[%emt 0:00:22]} 41. Rf1 {[%emt 0:31:48]} Qg7 {[%emt 0:11:36]} 42. Rf2 {[%emt 0:00:00]} Rf8 {[%emt 0:01:15]} 43. Qc4 {[%emt 0:00:00]} Rd8 {[%emt 0:08:24]} 44. d7 {[%emt 0:00:00]} Qf8 {[%emt 0:01:14]} 45. Qd5 {[%emt 0:00:00]} Qe7 {[%emt 0:04:59]} 46. Qxh5 {[%emt 0:00:00]} Qxd7 {[%emt 0:02:14]} 47. Rf5 {[%emt 0:00:00]} Rg6 {[%emt 0:01:40]} 48. Rxe4 {[%emt 0:00:00]} Qd1+ {[%emt 0:00:05]} 49. Qxd1 {[%emt 0:00:00]} Rxd1+ {[%emt 0:00:03]} 50. Rf1 {[%emt 0:00:21]} Rgd6 {[%emt 0:00:25]} 1/2-1/2

[Event "Elitserien Allsvenskan 2019-20"]
[Site "Lund"]
[Date "2020.01.31"]
[Round "6.1"]
[White "Kulaots, Kaido"]
[Black "Jepson, Christian"]
[Result "1-0"]
[ECO "B07"]
[WhiteElo "2510"]
[BlackElo "2384"]
[Annotator "RC"]
[PlyCount "67"]
[EventDate "2019.10.18"]
[EventType "team-tourn"]
[EventCountry "SWE"]
[SourceTitle "playchess.com"]
[Source "ChessBase"]
[SourceQuality "1"]
[TimeControl "40/5400+30:1800+30"]

1. e4 {[%emt 0:00:00]} d6 {[%emt 0:01:27]} 2. d4 {[%emt 0:00:04]} Nf6 {[%emt 0:00:12]} 3. f3 {[%emt 0:00:20]} c5 {[%emt 0:00:54]} 4. d5 {[%emt 0:01:55]} e6 {[%emt 0:00:54]} 5. c4 {[%emt 0:02:57]} Be7 {[%emt 0:06:34]} 6. Nc3 {[%emt 0:01:06]} O-O {[%emt 0:00:16]} 7. Bd3 {[%emt 0:02:15]} exd5 {[%emt 0:07:07]} 8. cxd5 {[%emt 0:00:32]} a6 {[%emt 0:06:02]} 9. Nge2 {[%emt 0:06:34]} Nbd7 {[%emt 0:00:00]} 10. O-O {[%emt 0:03:12]} Ne5 {[%emt 0:04:42]} 11. Bc2 {[%emt 0:00:16]} b5 {[%emt 0:04:27]} 12. f4 {[%emt 0:07:29]} Nc4 {[%emt 0:11:04]} 13. Qd3 {[%emt 0:14:51]} g6 {[%emt 0:04:45]} 14. a4 {[%emt 0:07:04]} Bd7 {[%emt 0:06:08]} 15. Ng3 {[%emt 0:02:19]} Ne8 {[%emt 0:08:49]} 16. b3 {[%emt 0:04:17]} Nb6 {[%emt 0:11:36]} 17. e5 {[%emt 0:11:54]} f5 {[%emt 0:07:24]} 18. a5 {[%emt 0:15:00]} c4 {[%emt 0:12:01]} 19. Qd4 {[%emt 0:08:53]} cxb3 {[%emt 0:00:13]} 20. Bxb3 {[%emt 0:00:08]} Nc4 {[%emt 0:00:06]} 21. Bxc4 {[%emt 0:00:22]} bxc4 {[%emt 0:00:11]} 22. Be3 {[%emt 0:03:10]} Nc7 {[%emt 0:03:28]} 23. Qxc4 {[%emt 0:02:27]} Nb5 {[%emt 0:00:55]} 24. Na4 {[%emt 0:00:34]} Rc8 {[%emt 0:01:54]} 25. Qd3 {[%emt 0:01:10]} dxe5 {[%emt 0:00:46]} 26. fxe5 {[%emt 0:00:26]} Be6 {[%emt 0:00:27]} 27. Nb6 {[%emt 0:01:11]} Rc3 {[%emt 0:00:05]} 28. Qd2 {[%emt 0:00:38]} f4 {[%emt 0:00:57]} 29. Rxf4 {[%emt 0:01:24]} Rxf4 {[%emt 0:00:20]} 30. Bxf4 {[%emt 0:00:04]} Bc5+ {[%emt 0:00:23]} 31. Kh1 {[%emt 0:00:12]} Bxb6 {[%emt 0:00:11]} 32. axb6 {[%emt 0:02:28]} Qxd5 {[%emt 0:00:26]} 33. b7 {[%emt 0:00:43]} Qxb7 {[%emt 0:01:03]} 34. Qd8+ {[%emt 0:00:07]} 1-0